fUSD/lending_fUSD_20260301
["ID","MTS","AMOUNT","RATE_DAILY","PERIOD"]
[406961056,1772358642939,-500.0,0.00017808,2]
[406961057,1772358642948,-500.0,0.00017808,2]
[406961058,1772358642958,-500.0,0.00017808,2]
[406961059,1772358642968,-165.94619115,0.00017808,2]
[406961060,1772358642978,-150.0,0.00017808,2]
[406961061,1772358642988,-5000.0,0.00017808,2]
[406961062,1772358642997,-500.0,0.00017808,2]
[406961063,1772358643006,-500.0,0.00017808,2]
[406961064,1772358643016,-500.0,0.00017808,2]
[406961065,1772358643025,-500.0,0.00017808,2]
[406961066,1772358643035,-500.0,0.00017808,2]
[406961067,1772358643044,-500.0,0.00017808,2]
[406961068,1772358643053,-500.0,0.00017808,2]
[406961069,1772358643063,-500.0,0.00017808,2]
[406961070,1772358643072,-500.0,0.00017808,2]
[406961071,1772358643082,-500.0,0.00017808,2]
[406961072,1772358643092,-500.0,0.00017808,2]
[406961073,1772358643103,-500.0,0.00017808,2]
[406961074,1772358643113,-293.75480595,0.00017808,2]
[406961075,1772358643123,-500.0,0.00017808,2]
[406961076,1772358643133,-500.0,0.00017808,2]
[406961077,1772358643143,-500.0,0.00017808,2]
[406961078,1772358643154,-500.0,0.00017808,2]
[406961079,1772358643163,-500.0,0.00017808,2]
[406961080,1772358643173,-500.0,0.00017808,2]
[406961081,1772358643182,-500.0,0.00017808,2]
[406961082,1772358643191,-500.0,0.00017808,2]
[406961083,1772358643202,-500.0,0.00017808,2]
[406961084,1772358643212,-150.0,0.00017808,2]
[406961085,1772358643221,-500.0,0.00017808,2]
[406961086,1772358643231,-500.0,0.00017808,2]
[406961087,1772358643240,-800.0,0.00017808,2]
[406961088,1772358643250,-1072.87450731,0.0001782,10]
[406961089,1772358643259,-74519.43714366,0.00017848,2]
[406961090,1772358643268,-19585.6799612,0.00017861,2]
[406961091,1772358643278,-1236.7926548,0.00017861,2]
[406961092,1772358643287,-2585.4438442,0.00017861,2]
[406961093,1772358643297,-1286.0013889,0.00017861,2]
[406961094,1772358643306,-167.19273963,0.00017862,2]
[406961095,1772358643315,-1224.0,0.00017862,2]
[406961096,1772358643325,-230.5137839,0.00017862,2]
[406961097,1772358643334,-150.0,0.00017862,2]
[406961098,1772358643343,-500.0,0.00017862,2]
[406961099,1772358643352,-254.40853203,0.00017862,2]
[406961100,1772358643360,-500.0,0.00017862,2]
[406961101,1772358643370,-500.0,0.00017862,2]
[406961102,1772358643378,-500.0,0.00017862,2]
[406961103,1772358643388,-500.0,0.00017862,2]
[406961104,1772358643397,-150.0,0.00017862,2]
[406961105,1772358643406,-500.0,0.00017863,2]
[406961106,1772358643419,-10000.0,0.000179,2]
[406961107,1772358643430,-155.23642035,0.000179,2]
[406961108,1772358643439,-19219.73555751,0.000179,2]
[406961109,1772358643449,-2900.0,0.000179,6]
[406961110,1772358643459,-3158.35330675,0.000179,2]
[406961111,1772358643470,-45648.36817952,0.000179,2]
[406961112,1772358643480,-200.0,0.000179,6]
[406961113,1772358643492,-2000.0,0.000179,2]
[406961114,1772358643505,-7127.0,0.000179,2]
[406961115,1772358643515,-2495.336899,0.00017908,7]
[406961116,1772358643526,-1224.0,0.00017917,2]
[406961117,1772358643536,-150.0,0.00017917,2]
[406961118,1772358643544,-500.0,0.00017917,2]
[406961119,1772358643552,-500.0,0.00017917,2]
[406961120,1772358643561,-500.0,0.00017917,2]
[406961121,1772358643569,-150.62440252,0.00017917,2]
[406961122,1772358643577,-500.0,0.00017917,2]
[406961123,1772358643587,-150.0,0.00017917,2]
[406961124,1772358643596,-500.0,0.00017918,2]
[406961125,1772358643606,-1224.0,0.00017972,2]
[406961126,1772358643615,-179.47115924,0.00017972,2]
[406961127,1772358643624,-500.0,0.00017972,2]
[406961128,1772358643633,-500.0,0.00017972,2]
[406961129,1772358643642,-162.71600095,0.00017972,2]
[406961130,1772358643652,-303.81881414,0.00017972,2]
[406961131,1772358643661,-155.70401297,0.00017972,2]
[406961132,1772358643670,-500.0,0.00017972,2]
[406961133,1772358643681,-673.80411777,0.0001799,2]
[406961134,1772358643690,-151.0,0.00017997,2]
[406961135,1772358643699,-151.0,0.00017997,2]
[406961136,1772358643708,-500.0,0.00017999,2]
[406961137,1772358643717,-500.0,0.00017999,2]
[406961138,1772358643726,-500.0,0.00017999,2]
[406961139,1772358643735,-219.8714796,0.00017999,2]
[406961140,1772358643745,-1036.32016175,0.00017999,5]
[406961141,1772358643754,-352.47562623,0.00017999,2]
[406961142,1772358643762,-287.24701665,0.00017999,2]
[406961143,1772358643771,-300.0,0.00017999,2]
[406961144,1772358643779,-192.44937759,0.00017999,2]
[406961145,1772358643788,-632508.42720066,0.00018,2]
[406961146,1772358643797,-304099.99782844,0.00018,2]
[406961147,1772358643805,-160.0,0.00018,2]
[406961148,1772358643814,-6170861.22154882,0.00018,2]
[406961149,1772358643985,-1274.4298452,0.00018,2]
[406961150,1772358644108,-1436.32016175,0.0001648,2]
[406961151,1772358644139,-1019.8272,0.0001648,2]
[406961155,1772358667554,169.900106,7.945e-05,2]
[406961156,1772358906451,158.0,7.945e-05,3]
[406961158,1772359036383,481.34,6.108e-05,2]
[406961159,1772359036575,481.34,6.429e-05,2]
[406961160,1772359036753,481.34,6.751e-05,2]
[406961161,1772359036947,481.34,7.072e-05,2]
[406961162,1772359037145,481.34,7.394e-05,2]
[406961163,1772359037343,481.34,7.715e-05,2]
[406961165,1772359206382,158.0,7.945e-05,3]
[406961177,1772359509167,158.0,7.945e-05,3]
[406961184,1772359831557,-481.34,8.037e-05,2]
[406961187,1772359831568,-248.17283028,8.358e-05,2]
[406961188,1772359831581,-233.16716972,8.358e-05,2]
[406961189,1772359831591,-220.0,8.584e-05,2]
[406961190,1772359831602,-312.55268411,8.68e-05,2]
[406961191,1772359831615,-168.78731589,8.68e-05,2]
[406961192,1772359831624,-250.36176056,8.841e-05,2]
[406961193,1772359831646,-160.61382242,9.001e-05,2]
[406961194,1772359831657,-320.72617758,9.001e-05,2]
[406961195,1772359831667,-651.94374217,9.002e-05,2]
[406961196,1772359831678,-548.05625783,9.002e-05,2]
[406961197,1772359831688,-500.0,9.003e-05,2]
[406961198,1772359831697,-500.0,9.003e-05,2]
[406961199,1772359831707,-367.55422505,9.003e-05,2]
[406961200,1772359831719,-132.44577495,9.003e-05,2]
[406961201,1772359831729,-500.0,9.003e-05,2]
[406961202,1772359831738,-500.0,9.003e-05,2]
[406961203,1772359831748,-193.35422505,9.003e-05,2]
[406961204,1772359831762,-306.64577495,9.003e-05,2]
[406961227,1772359831941,-500.0,9.003e-05,2]
[406961229,1772359831955,-250.36176056,9.082e-05,2]
[406961231,1772359831964,-14271.43666479,9.083e-05,2]
[406961233,1772359831974,-1000.0,9.092e-05,2]
[406961235,1772359831983,-1000.0,9.092e-05,2]
[406961237,1772359831997,-150.0,9.092e-05,2]
[406961239,1772359832010,-54588.0551276,9.093e-05,2]
[406961242,1772359832021,-1254.41808677,9.093e-05,2]
[406961245,1772359832044,-2884.26632517,9.093e-05,2]
[406961247,1772359832055,-3577.7,9.093e-05,2]
[406961250,1772359832065,-681.59036274,9.093e-05,2]
[406961252,1772359832075,-481.34,9.323e-05,2]
[406961254,1772359832084,-250.36176056,9.323e-05,2]
[406961256,1772359832094,-167.88083998,9.349e-05,2]
[406961258,1772359832105,-708.50603005,9.349e-05,2]
[406961260,1772359832120,-856.65432573,9.349e-05,2]
[406961272,1772359837617,-117.22880424,9.349e-05,2]
[406961273,1772359837627,-784.57735434,9.38e-05,2]
[406961274,1772359837674,-33192.06264566,9.38e-05,2]
[406961275,1772359837684,-150.0,9.507e-05,2]
[406961276,1772359837693,-481.34,9.644e-05,2]
[406961277,1772359837705,-207.77,9.887e-05,2]
[406961278,1772359837715,-1680.0,9.902e-05,2]
[406961279,1772359837724,-481.34,9.966e-05,2]
[406961280,1772359837733,-151.0,0.0001,2]
[406961281,1772359837746,-151.0,0.0001,2]
[406961282,1772359837755,-151.0,0.0001,2]
[406961283,1772359837769,-151.0,0.0001,2]
[406961284,1772359837779,-151.0,0.0001,2]
[406961285,1772359837789,-500.0,0.0001,2]
[406961286,1772359837798,-500.0,0.0001,2]
[406961287,1772359837808,-500.0,0.0001,2]
[406961288,1772359837817,-500.0,0.0001,2]
[406961289,1772359837827,-500.0,0.0001,2]
[406961290,1772359837837,-500.0,0.0001,2]
[406961291,1772359837846,-500.0,0.0001,2]
[406961292,1772359837855,-500.0,0.0001,2]
[406961293,1772359837864,-500.0,0.0001,2]
[406961294,1772359837873,-500.0,0.0001,2]
[406961295,1772359837882,-500.0,0.0001,2]
[406961296,1772359837892,-500.0,0.0001,2]
[406961297,1772359837902,-500.0,0.0001,2]
[406961298,1772359837911,-151.0,0.0001,2]
[406961299,1772359837920,-151.0,0.0001,2]
[406961300,1772359837930,-151.0,0.0001,2]
[406961301,1772359837941,-151.0,0.0001,2]
[406961303,1772359837951,-151.0,0.0001,2]
[406961305,1772359837960,-151.0,0.0001,2]
[406961307,1772359837969,-151.0,0.0001,2]
[406961309,1772359837978,-151.0,0.0001,2]
[406961311,1772359837987,-151.0,0.0001,2]
[406961313,1772359837996,-151.0,0.0001,2]
[406961315,1772359838005,-151.0,0.0001,2]
[406961317,1772359838015,-151.0,0.0001,2]
[406961320,1772359838024,-151.0,0.0001,2]
[406961323,1772359838033,-500.0,0.0001,2]
[406961325,1772359838042,-255.0,0.00010001,2]
[406961327,1772359838052,-13473.97,0.00010006,2]
[406961329,1772359838061,-4000.0,0.00010027,2]
[406961331,1772359838071,-1600.0,0.00010067,2]
[406961333,1772359838080,-1517.0,0.00010246,2]
[406961335,1772359838089,-500.0,0.00010274,2]
[406961337,1772359838098,-4000.0,0.00010278,2]
[406961339,1772359838107,-481.34,0.00010287,2]
[406961341,1772359838116,-248.29,0.0001038,2]
[406961343,1772359838126,-7416.59805035,0.00010382,2]
[406961345,1772359838135,-4000.0,0.00010529,2]
[406961347,1772359838143,-500.0,0.00010548,2]
[406961349,1772359838154,-481.34,0.00010609,2]
[406961351,1772359838163,-250.0,0.00010619,2]
[406961353,1772359838173,-1425.0,0.00010623,2]
[406961356,1772359838183,-244.0,0.00010644,2]
[406961358,1772359838192,-269.35887299,0.000107,2]
[406961360,1772359838202,-230.0,0.00010748,2]
[406961361,1772359838212,-10583.28764156,0.00010761,2]
[406961363,1772359838222,-4000.0,0.00010779,2]
[406961365,1772359838231,-500.0,0.00010822,2]
[406961367,1772359838241,-215.16,0.0001089,2]
[406961369,1772359838251,-2351.0,0.00010892,2]
[406961371,1772359838261,-481.34,0.0001093,2]
[406961374,1772359838270,-150.0,0.00010959,2]
[406961376,1772359838280,-185.585143,0.00010994,2]
[406961378,1772359838290,-433.0,0.00011001,2]
[406961380,1772359838299,-1821.17213736,0.00011003,2]
[406961382,1772359838308,-4000.0,0.0001103,2]
[406961384,1772359838317,-7705.67,0.00011054,2]
[406961386,1772359838327,-500.0,0.00011096,2]
[406961388,1772359838335,-1198.6258055,0.00011182,2]
[406961390,1772359838345,-481.34,0.00011252,2]
[406961392,1772359838354,-1600.0,0.00011325,2]
[406961393,1772359838363,-45648.36817959,0.00011473,2]
[406961394,1772359838372,-1540.21,0.00011507,2]
[406961396,1772359838381,-1838.48096918,0.00011544,2]
[406961398,1772359838390,-19219.73555753,0.00011544,2]
[406961400,1772359838399,-1000.0,0.00011572,2]
[406961402,1772359838408,-481.34,0.00011573,2]
[406961404,1772359838418,-155.23642036,0.00011584,2]
[406961406,1772359838428,-500.0,0.00011599,2]
[406961408,1772359838437,-500.0,0.00011599,2]
[406961409,1772359838445,-500.0,0.00011599,2]
[406961410,1772359838455,-500.0,0.00011599,2]
[406961411,1772359838464,-500.0,0.00011599,2]
[406961412,1772359838473,-500.0,0.00011599,2]
[406961413,1772359838482,-500.0,0.00011599,2]
[406961414,1772359838491,-500.0,0.00011599,2]
[406961415,1772359838501,-500.0,0.00011599,2]
[406961416,1772359838515,-500.0,0.00011599,2]
[406961417,1772359838524,-500.0,0.00011599,2]
[406961418,1772359838534,-500.0,0.00011599,2]
[406961419,1772359838543,-500.0,0.00011599,2]
[406961420,1772359838552,-500.0,0.00011599,2]
[406961421,1772359838562,-500.0,0.00011599,2]
[406961422,1772359838571,-500.0,0.00011599,2]
[406961423,1772359838580,-500.0,0.00011599,2]
[406961424,1772359838589,-500.0,0.00011599,2]
[406961425,1772359838598,-500.0,0.00011599,2]
[406961426,1772359838609,-500.0,0.00011599,2]
[406961427,1772359838619,-500.0,0.00011599,2]
[406961428,1772359838628,-500.0,0.00011599,2]
[406961429,1772359838636,-500.0,0.00011599,2]
[406961430,1772359838647,-500.0,0.00011599,2]
[406961431,1772359838657,-500.0,0.00011599,2]
[406961432,1772359838667,-500.0,0.00011599,2]
[406961433,1772359838676,-500.0,0.00011599,2]
[406961434,1772359838687,-500.0,0.00011599,2]
[406961435,1772359838697,-500.0,0.00011599,2]
[406961436,1772359838706,-500.0,0.00011599,2]
[406961437,1772359838716,-500.0,0.00011599,2]
[406961438,1772359838725,-500.0,0.00011599,2]
[406961439,1772359838734,-500.0,0.00011599,2]
[406961440,1772359838743,-500.0,0.00011599,2]
[406961441,1772359838754,-500.0,0.00011599,2]
[406961442,1772359838765,-500.0,0.00011599,2]
[406961443,1772359838775,-500.0,0.00011599,2]
[406961444,1772359838784,-500.0,0.00011599,2]
[406961445,1772359838794,-500.0,0.00011599,2]
[406961446,1772359838803,-500.0,0.00011599,2]
[406961447,1772359838813,-500.0,0.00011599,2]
[406961448,1772359838823,-500.0,0.00011599,2]
[406961449,1772359838834,-500.0,0.00011599,2]
[406961450,1772359838844,-500.0,0.00011599,2]
[406961451,1772359838853,-500.0,0.00011599,2]
[406961452,1772359838862,-500.0,0.00011599,2]
[406961453,1772359838871,-500.0,0.00011599,2]
[406961454,1772359838880,-500.0,0.00011599,2]
[406961455,1772359838889,-500.0,0.00011599,2]
[406961456,1772359838899,-500.0,0.00011599,2]
[406961457,1772359838908,-500.0,0.00011599,2]
[406961458,1772359838918,-500.0,0.00011599,2]
[406961459,1772359838927,-682.07084268,0.00011599,2]
[406961460,1772359838937,-682.07084268,0.00011599,2]
[406961461,1772359838947,-682.07084268,0.00011599,2]
[406961462,1772359838956,-682.07084268,0.00011599,2]
[406961463,1772359838966,-682.07084268,0.00011599,2]
[406961464,1772359838975,-682.07084268,0.00011599,2]
[406961465,1772359838985,-682.07084268,0.00011599,2]
[406961466,1772359838996,-682.07084268,0.00011599,2]
[406961467,1772359839006,-682.07084268,0.00011599,2]
[406961468,1772359839016,-682.07084268,0.00011599,2]
[406961469,1772359839026,-682.07084268,0.00011599,2]
[406961470,1772359839037,-682.07084268,0.00011599,2]
[406961471,1772359839047,-682.07084268,0.00011599,2]
[406961472,1772359839057,-682.07084268,0.00011599,2]
[406961473,1772359839067,-682.07084268,0.00011599,2]
[406961474,1772359839077,-682.07084268,0.00011599,2]
[406961475,1772359839089,-682.07084268,0.00011599,2]
[406961476,1772359839099,-682.07084268,0.00011599,2]
[406961477,1772359839109,-682.07084268,0.00011599,2]
[406961478,1772359839119,-682.07084268,0.00011599,2]
[406961479,1772359839128,-682.07084268,0.00011599,2]
[406961480,1772359839138,-682.07084268,0.00011599,2]
[406961481,1772359839148,-682.07084268,0.00011599,2]
[406961482,1772359839157,-682.07084268,0.00011599,2]
[406961483,1772359839168,-682.07084268,0.00011599,2]
[406961484,1772359839178,-663.70739692,0.00011599,2]
[406961485,1772359839187,-663.70739692,0.00011599,2]
[406961486,1772359839198,-663.70739692,0.00011599,2]
[406961487,1772359839209,-663.70739692,0.00011599,2]
[406961488,1772359839218,-663.70739692,0.00011599,2]
[406961489,1772359839228,-663.70739692,0.00011599,2]
[406961490,1772359839238,-663.70739692,0.00011599,2]
[406961491,1772359839247,-663.70739692,0.00011599,2]
[406961492,1772359839257,-663.70739692,0.00011599,2]
[406961493,1772359839266,-663.70739692,0.00011599,2]
[406961494,1772359839275,-663.70739692,0.00011599,2]
[406961495,1772359839289,-663.70739692,0.00011599,2]
[406961496,1772359839298,-663.70739691,0.00011599,2]
[406961497,1772359839308,-233.4835721,0.00011599,2]
[406961498,1772359839317,-918966.8509,0.000116,2]
[406961499,1772359839327,-449.20274519,0.00011634,2]
[406961500,1772359839337,-11224.11,0.00011644,2]
[406961501,1772359839346,-1036.32016175,0.00011683,3]
[406961502,1772359839355,-32891.4421,0.00011684,2]
[406961503,1772359839365,-187.9739,0.00011684,2]
[406961504,1772359839374,-1000.0,0.00011684,2]
[406961505,1772359839383,-2700.0,0.000118,4]
[406961506,1772359839393,-481.34,0.00011895,2]
[406961507,1772359839402,-5400.0,0.000119,4]
[406961508,1772359839413,-3292.0,0.00011982,2]
[406961509,1772359839423,-12316.36,0.00012055,2]
[406961510,1772359839433,-500.0,0.0001207,2]
[406961511,1772359839442,-500.0,0.0001207,2]
[406961512,1772359839452,-500.0,0.0001207,2]
[406961513,1772359839461,-500.0,0.0001207,2]
[406961514,1772359839470,-500.0,0.0001207,2]
[406961515,1772359839481,-500.0,0.0001207,2]
[406961516,1772359839491,-500.0,0.0001207,2]
[406961517,1772359839611,-500.0,0.0001207,2]
[406961518,1772359839621,-173.85261978,0.0001207,2]
[406961519,1772359839630,-500.0,0.0001207,2]
[406961520,1772359839638,-500.0,0.0001207,2]
[406961521,1772359839647,-500.0,0.0001207,2]
[406961522,1772359839656,-500.0,0.0001207,2]
[406961523,1772359839665,-500.0,0.0001207,2]
[406961524,1772359839674,-500.0,0.0001207,2]
[406961525,1772359839683,-500.0,0.0001207,2]
[406961526,1772359839692,-502.36418825,0.0001207,2]
[406961527,1772359839701,-500.0,0.0001207,2]
[406961528,1772359839710,-500.0,0.0001207,2]
[406961529,1772359839719,-500.0,0.0001207,2]
[406961530,1772359839728,-505.60044076,0.0001207,2]
[406961531,1772359839737,-500.0,0.0001207,2]
[406961532,1772359839746,-500.0,0.0001207,2]
[406961533,1772359839756,-500.0,0.0001207,2]
[406961534,1772359839769,-500.0,0.0001207,2]
[406961536,1772359839778,-670.0,0.0001207,2]
[406961537,1772359839787,-500.0,0.0001207,2]
[406961538,1772359839796,-500.0,0.0001207,2]
[406961539,1772359839806,-500.0,0.0001207,2]
[406961540,1772359839815,-152.81102873,0.0001207,2]
[406961541,1772359839825,-736.0,0.00012101,2]
[406961542,1772359839836,-45648.36817952,0.00012187,2]
[406961543,1772359839845,-481.34,0.00012216,2]
[406961544,1772359839854,-19219.73555751,0.0001225,2]
[406961545,1772359839863,-1838.48096911,0.00012452,2]
[406961546,1772359839872,-308.77176682,0.000125,2]
[406961547,1772359839881,-1600.0,0.00012584,2]
[406961548,1772359839890,-500.0,0.000127,2]
[406961549,1772359839899,-500.0,0.000127,2]
[406961550,1772359839908,-500.0,0.000127,2]
[406961551,1772359839917,-501.42014144,0.000127,2]
[406961552,1772359839926,-500.0,0.000127,2]
[406961553,1772359839936,-500.0,0.000127,2]
[406961554,1772359839945,-500.18195565,0.000127,2]
[406961555,1772359839955,-502.18781882,0.000127,2]
[406961556,1772359839964,-500.0,0.000127,2]
[406961557,1772359839972,-500.0,0.000127,2]
[406961558,1772359839981,-45648.36817952,0.00012901,2]
[406961559,1772359839990,-2495.336899,0.00012956,2]
[406961560,1772359839999,-11082.53798,0.00012956,2]
[406961561,1772359840010,-19219.73555751,0.00012956,2]
[406961562,1772359840019,-4609.0,0.0001318,2]
[406961563,1772359840029,-1000.0,0.00013248,2]
[406961564,1772359840038,-415.85133049,0.00013248,2]
[406961565,1772359840047,-1000.0,0.00013248,2]
[406961566,1772359840056,-1000.0,0.00013248,2]
[406961567,1772359840066,-1000.0,0.00013248,2]
[406961568,1772359840075,-1000.0,0.00013248,2]
[406961569,1772359840084,-850.06934174,0.00013248,2]
[406961570,1772359840094,-920.94,0.000133,2]
[406961571,1772359840104,-1252.0,0.00013311,2]
[406961572,1772359840114,-1838.48096911,0.0001336,2]
[406961573,1772359840124,-3240.0,0.00013425,2]
[406961574,1772359840135,-1000.0,0.00013545,2]
[406961575,1772359840145,-45648.36817952,0.00013615,2]
[406961576,1772359840155,-19219.73555751,0.00013663,2]
[406961577,1772359840164,-231.36,0.00013698,2]
[406961578,1772359840174,-500.0,0.00013698,2]
[406961579,1772359840183,-500.0,0.00013698,2]
[406961580,1772359840192,-500.0,0.00013698,2]
[406961581,1772359840202,-500.0,0.00013698,2]
[406961582,1772359840212,-500.0,0.00013698,2]
[406961583,1772359840221,-500.0,0.00013698,2]
[406961584,1772359840230,-500.0,0.00013698,2]
[406961585,1772359840239,-595.07228117,0.00013698,2]
[406961586,1772359840249,-500.0,0.00013698,2]
[406961587,1772359840259,-500.0,0.00013698,2]
[406961588,1772359840269,-500.0,0.00013698,2]
[406961589,1772359840278,-500.0,0.00013698,2]
[406961590,1772359840287,-500.0,0.00013698,2]
[406961591,1772359840296,-500.0,0.00013698,2]
[406961592,1772359840305,-500.0,0.00013698,2]
[406961593,1772359840314,-500.0,0.00013698,2]
[406961594,1772359840322,-500.0,0.00013698,2]
[406961595,1772359840331,-500.0,0.00013698,2]
[406961596,1772359840340,-500.0,0.00013698,2]
[406961597,1772359840349,-500.0,0.00013698,2]
[406961598,1772359840358,-500.0,0.00013698,2]
[406961599,1772359840367,-500.0,0.00013698,2]
[406961600,1772359840376,-604.16,0.00013698,2]
[406961601,1772359840385,-500.0,0.00013698,2]
[406961602,1772359840394,-500.0,0.00013698,2]
[406961603,1772359840403,-500.0,0.00013698,2]
[406961604,1772359840413,-500.0,0.00013698,2]
[406961605,1772359840422,-405.61,0.00013698,2]
[406961606,1772359840431,-500.0,0.00013698,2]
[406961607,1772359840441,-500.0,0.00013698,2]
[406961608,1772359840450,-500.0,0.00013698,2]
[406961609,1772359840459,-500.0,0.00013698,2]
[406961610,1772359840468,-500.0,0.00013698,2]
[406961611,1772359840478,-500.0,0.00013698,2]
[406961612,1772359840487,-500.0,0.00013698,2]
[406961613,1772359840496,-500.0,0.00013698,2]
[406961614,1772359840506,-330.61629648,0.00013698,2]
[406961616,1772359840515,-500.0,0.00013698,2]
[406961618,1772359840523,-500.0,0.00013698,2]
[406961620,1772359840533,-500.0,0.00013698,2]
[406961622,1772359840542,-564.87520289,0.00013698,2]
[406961624,1772359840551,-500.0,0.00013698,2]
[406961626,1772359840560,-222.702172,0.00013743,7]
[406961628,1772359840569,-1004.04615842,0.00013796,2]
[406961630,1772359840585,-1500.0,0.00013796,2]
[406961632,1772359840594,-1500.0,0.00013796,2]
[406961635,1772359840603,-1600.0,0.00013842,2]
[406961637,1772359840613,-2360.28,0.00013941,2]
[406961638,1772359840622,-947.57827244,0.00013945,2]
[406961640,1772359840630,-3786.17671891,0.0001401,2]
[406961642,1772359840640,-12425.85,0.00014022,2]
[406961643,1772359840649,-519.0,0.0001411,2]
[406961644,1772359840659,-484.4008852,0.00014253,2]
[406961645,1772359840668,-484.40088519,0.00014253,2]
[406961646,1772359840677,-1838.48096911,0.00014268,2]
[406961647,1772359840686,-11253.89865186,0.00014329,2]
[406961648,1772359840852,-573.83296198,0.00014329,2]
[406961649,1772359840867,-634.59901641,0.00014329,2]
[406961650,1772359840877,-4945.28451343,0.00014329,2]
[406961651,1772359840981,-332.9846,0.00014329,2]
[406961652,1772359840992,-27907.76843584,0.00014329,2]
[406961653,1772359841001,-1717.36257546,0.00014344,2]
[406961654,1772359841011,-19219.73555751,0.00014369,2]
[406961655,1772359841020,-500.0,0.0001439,2]
[406961656,1772359841029,-886.0,0.00014498,2]
[406961657,1772359841039,-155.23642035,0.000146,2]
[406961658,1772359841048,-810.0,0.00014647,2]
[406961659,1772359841057,-300.0,0.00014714,7]
[406961660,1772359841066,-150.0,0.00014714,7]
[406961661,1772359841075,-1350.0,0.00014714,7]
[406961662,1772359841085,-267.19876444,0.00014714,7]
[406961663,1772359841095,-998.71350372,0.00014714,7]
[406961664,1772359841104,-1000.0,0.00014714,7]
[406961665,1772359841114,-290.12369262,0.00014773,2]
[406961666,1772359841123,-500.0,0.00014773,2]
[406961667,1772359841133,-321.13495914,0.00014773,2]
[406961668,1772359841142,-500.0,0.00014773,2]
[406961669,1772359841151,-500.0,0.00014773,2]
[406961670,1772359841161,-500.0,0.00014773,2]
[406961671,1772359841171,-535.1535458,0.00014773,2]
[406961672,1772359841181,-500.0,0.00014773,2]
[406961673,1772359841191,-500.0,0.00014773,2]
[406961674,1772359841200,-3786.1767189,0.00014788,2]
[406961675,1772359841210,-8100.0,0.000149,5]
[406961676,1772359841220,-250.0,0.00015,2]
[406961677,1772359841229,-45648.36817952,0.00015044,2]
[406961678,1772359841238,-900.0,0.00015068,2]
[406961679,1772359841248,-19219.73555751,0.00015075,2]
[406961680,1772359841258,-27771.89943193,0.000151,2]
[406961681,1772359841267,-1600.0,0.000151,2]
[406961682,1772359841276,-1838.48096911,0.00015176,2]
[406961683,1772359841285,-1000.0,0.00015206,2]
[406961684,1772359841294,-215.16,0.00015232,2]
[406961685,1772359841303,-154.27,0.0001525,2]
[406961686,1772359841314,-244.09261149,0.00015321,2]
[406961687,1772359841326,-500.0,0.00015321,2]
[406961688,1772359841335,-1000.0,0.00015321,2]
[406961689,1772359841344,-1000.0,0.00015321,2]
[406961690,1772359841354,-45000.0,0.0001533,2]
[406961691,1772359841363,-7705.67,0.00015475,2]
[406961692,1772359841372,-3786.1767189,0.00015566,2]
[406961693,1772359841382,-45648.36817952,0.00015758,2]
[406961694,1772359841391,-19219.73555751,0.00015781,2]
[406961695,1772359841400,-1552.59653977,0.00015868,2]
[406961696,1772359841410,-1500.0,0.00015868,2]
[406961697,1772359841419,-372.0,0.00016082,2]
[406961698,1772359841428,-1838.48096911,0.00016084,2]
[406961699,1772359841438,-150.99,0.00016116,2]